{"text_format":"1","workbook":"xlsx","n_sheets":7,"sheets":["Anleitung","Netzrechner","Ergebnisse Detail","Foto","Daten","Parameter2","Auswahloptionen2"],"not_rendered":{"charts":0,"images":34,"macros":1,"external_links":0,"defined_names":8,"comments":0,"pivot_tables":0},"unopened":[],"bounds":{"document_bytes":16777216,"sheet_cells":100000,"rows_first":2000,"rows_last":500,"rows_between":2000,"halvings":0,"cell_chars":16384,"cell_head_chars":4096},"cells_cut":0,"cells_raw":0,"read":"whole","date_system":"1900"}

{"sheet":"Anleitung","index":0,"n_rows":31,"n_cols":4,"rows_kept":31,"cut":false,"hidden":false,"merged":[[4,1,4,9],[11,3,13,9],[7,1,9,9],[11,1,12,2],[15,1,16,2],[15,3,18,9],[24,3,27,9],[29,3,33,9],[24,1,25,2],[20,3,22,9],[20,1,21,2]]}
[]
[null,"Allgemeine Bedienungsanleitung (Stand 18.05.2021)"]
[]
[null,"Ergebnisse sind Orientierungswerte:"]
[null,"Auf Basis der Anlagen im Demonstrationsprojekt und auf Basis von Herstellerbefragungen können mithilfe des Excel-basierten Tools die Anschaffungskosten, die jährlichen Kosten sowie der jährliche Arbeitszeitbedarf für verschiedene Arten der Einnetzung berechnet werden. Aufgrund der Vielzahl an technischen Umsetzungsmöglichkeiten, den unterschiedlichen Anforderungen, die sich aus dem  Anlagenstandort ergeben (Wind, Gefälle, Gräben etc.), und des großen Einflusses der durch den Obstbetrieb selbst erbrachten Leistungen, sind die Ergebnisse als Orientierungswert zu verstehen.  \n"]
[]
[null,"Nutzung des Tools:"]
[null,"Zunächst müssen Angaben zu der Anlage, die eingenetzt werden soll, und zu der Art der gewünschten Einnetzung gemacht werden. Hierzu gibt es im Tabellenblatt Netzrechner entsprechende Felder. Es ist wichtig für alle rot markierten Felder in der entsprechenden Reihenfolge  eine Auswahl zu treffen."]
[]
[]
[]
[null,"Schritt 1: Welches Anbauverfahren soll eingenetzt werden?",null,"Art der Bestehenden Anlage auswählen : Hier können Sie zwischen Foliendach, Folientunnel und Freiland bzw. Freiland_lowCost unterscheiden (Die Option Freiland_LowCost steht für eine Anlage, die durch einen geringen Material- und Montageaufwand gekennzeichnet ist, und von dem Obstbauer selbst geplant und errichtet wird. Die Option ist nur für windgeschützte Anlagen unter 0,4 Hektar aussagekräftig)"]
[]
[null,"link Auswahl"]
[]
[null,"Schritt 2: Welche Fläche soll eingenetzt werden?",null,"Hier können Sie Ausmaße der Anlage, die eingenetzt werden soll angeben. Je nach Art der Anlage müssen hier noch die Reihenanzahl, der Abstand der Folie zum Boden, die Anzahl von Tunneln, freistehende oder verbundene Tunnel  etc.  ausgewählt werden. Wichtig! Wenn Sie die Auswahl in Schritt 1 ändern, müssen Sie die Felder 2 bis 7 neu auswählen."]
[]
[null,"link Anlagenform"]
[]
[]
[null,"Schritt 3: Netzpreis und Lohnkosten festlegen?",null,"Hier können Sie den Preis je m² Netz, sowie die Lohnansatz zur Berechnung der Arbeitskosten festlegen sowie die Nutzungsdauer der Netze festlegen. Hier sind bereits Werte vorgegeben. Sie müssen hier also keine Angeben machen."]
[]
[null,"Löhne und Preise"]
[]
[null,"Schritt 4: Wie soll die Einnetzung ausgestaltet werden?",null,"Hier können Sie das Einnetzungssystem festlegen (Seitlich, komplett, mit oder ohne Vorgewende etc.). Außerdem können Sie den Lagerort, die Art des Bodenabschlusses und den Zugang zur Anlage festlegen. Wichtig! Für alle Felder ( 8-11) muss anhand der Liste eine Option ausgewählt werden."]
[]
[null,"link Einnetzungssystem"]
[]
[]
[null,"Schritt 5: Ergebnisse",null,"Die Anschaffungskosten geben an wieviel Geld Sie inklusive Arbeitskosten investieren müssen. Die jährlichen Kosten beinhalten die  Kosten für Reparatur, Arbeitskosten und die Abschreibung auf die Anschaffungskosten. Wichtig! Falls kein Ergebnis angezeigt wird, bitte überprüfen sie die Auswahl in den Felder 8-11. "]
[null,"link Ergebnisse"]

{"sheet":"Netzrechner","index":1,"n_rows":25,"n_cols":17,"rows_kept":25,"cut":false,"hidden":false,"merged":[[1,1,1,3],[3,2,3,3],[1,7,1,8],[1,11,1,12],[10,16,11,16],[10,15,11,15],[10,14,11,14],[1,14,1,16],[2,14,3,16],[6,15,7,15],[6,16,7,16],[4,15,5,15],[4,16,5,16],[8,14,9,14],[8,15,9,15],[8,16,9,16],[4,14,5,14],[11,11,11,12],[11,7,11,8],[24,6,24,12],[12,1,12,3],[13,6,19,8],[13,10,19,12],[3,10,8,12],[3,6,8,8],[6,14,7,14]]}
[]
[null,"Angaben zur Anlage",null,null,null,null,"angestrebte Einnetzung (8)","Seitliche Einnetzung ",null,null,"Zugang zur Anlage (9)","Schleuse (Klein)",null,null,"Ergebnis: Kosten der Einnetzung (ohne MwSt.) :"]
[null,null,null,null,null,null,null,null,null,null,null,null,null,null,{"$f":"'Ergebnisse Detail'!C4","v":"Folientunnel ;  Fläche: 1,125ha ; Seitliche Einnetzung  ; Netzpreis: 0,86 € je m² ; Nutzungsdauer Netze: 10 Jahre ; Lohnansatz Einnetzung: 14,264 €/Akh"}]
[null,"Art der bestehenden Anlage (1): ","Folientunnel",null,null,null,{"$f":"VLOOKUP(Foto!F1,Foto!$F$2:$F$19,1,FALSE)","v":"FolientunnelSeitliche Einnetzung "},null,null,null,{"$f":"VLOOKUP(L2,Foto!$K$2:$K$17,1,FALSE)","v":"Schleuse (Klein)"}]
[null," Fläche: ",{"$f":"C6*C7/10000*IF(C4=Daten!B10,Netzrechner!C8,1)","v":1.125},"ha",null,null,null,null,null,null,null,null,null,null,"Anschaffungskosten ",{"$f":"IFERROR('Ergebnisse Detail'!P9,\"\")","v":7876.3564166666665},"€"]
[null,{"$f":"IF($C$4=Daten!$B$10,\"Länge Tunnel (2):\",\"Reihenlänge (2):\")","v":"Länge Tunnel (2):"},125,"m"]
[null,{"$f":"IF($C$4=Daten!$B$10,\"Breite Tunnel (3):\",\"Breite (3)\")","v":"Breite Tunnel (3):"},9,"m",null,null,null,null,null,null,null,null,null,null,"Arbeitszeitbedarf Erstmontage",{"$f":"IFERROR('Ergebnisse Detail'!D20,\"\")","v":28.958333333333336},"h"]
[null,{"$f":"IF(C4=Daten!B10,Auswahloptionen2!N3,IF(C4=Daten!B4,Auswahloptionen2!N4,IF(C4=Daten!B14,Auswahloptionen2!N4,IF(C4=Daten!B20,Auswahloptionen2!N4,Auswahloptionen2!N4))))","v":"Anzahl Tunnel (4)"},10,{"$f":"IF(B8=Auswahloptionen2!N3,\"n\",\"m\")","v":"n"}]
[null,{"$f":"IF(C4=Daten!B10,Auswahloptionen2!A5,IF(C4=Daten!B4,Auswahloptionen2!A5,IF(C4=Daten!B14,Auswahloptionen2!A4,IF(C4=Daten!B20,Auswahloptionen2!A4,Auswahloptionen2!A4))))","v":"Strecke Boden- Folie (5)"},2,"m",null,null,null,null,null,null,null,null,null,null,"Jährliche Kosten ",{"$f":"IFERROR('Ergebnisse Detail'!N12,\"\")","v":2774.2625762499993},"€ je Jahr"]
[null,{"$f":"IF(C4=Daten!B10,\"Tunnelhöhe (6)\",IF(C4=Daten!B4,\"Anzahl Reihen (6)\",IF(H2=Daten!C15,\"Anzahl Reihen mit Stützpfählen (6)\",\"Anzahl Reihen (6)\")))","v":"Tunnelhöhe (6)"},3.5,{"$f":"IF(C4=Daten!B10,\"m\",\"\")","v":"m"}]
[null,{"$f":"IF(C8>1,IF(C4=Daten!B10,\"einzelne Tunnel freistehend ? (7)\",\"\"),\"\")","v":"einzelne Tunnel freistehend ? (7)"},"nein",null,null,null,null,null,null,null,null,null,null,null,"Jährlicher Arbeitszeitbedarf:",{"$f":"IFERROR('Ergebnisse Detail'!J17,\"\")","v":127.69833333333327},"h je Jahr"]
[null,null," ",null,null,null,"Bodenabschluss/ Netzbefestigung (10)","Beschwerung/Sonstiges",null,null,{"$f":"IF(H2=Daten!C39,\"-\",IF(H2=Daten!C40,\"-\",IF(H2=Daten!C41,\"-\",IF(H2=Daten!C42,\"-\",\"Lagerung (11)\"))))","v":"Lagerung (11)"},"Anlage ( an der Gerüstkonstruktion)"]
[null,"Optional Lohnansatz, Nutzungsdauer, Netzpreis"]
[null,"Saisonarbeitskräfte",10.44,"€/Akh",null,null,{"$f":"VLOOKUP(H12,Foto!$I$2:$I$18,1,FALSE)","v":"Beschwerung/Sonstiges"},null,null,null,{"$f":"VLOOKUP(L12,Foto!$D$2:$D$18,1,FALSE)","v":"Anlage ( an der Gerüstkonstruktion)"}]
[null,"Festangestellte",20,"€/Akh"]
[null,"Lohnansatz Einnetzung: ",{"$f":"Netzrechner!C17/100*C14+(1-Netzrechner!C17/100)*C15","v":14.263999999999999}," €/Akh"]
[null,"Anteil Saisonarbeitskräfte ",60,"%"]
[null,"Kleinteile",10,"a"]
[null,"Netz",10," Jahre"]
[null,"Zinsansatz",0.03,"%"]
[null,"Netzpreis je m²",0.86,"€ je m²"]
[null,"Höhe des eingenetzten Vorgewendes",3.5,"m"]
[]
[]
[null,null,null,null,null,null,"Bei den Bildern handelt es sich  um Beispiele aus den Anlagen der Obstbaubetrieben des vom BMEL geförderte Demonstrationsvorhaben „Einnetzen von Obstkulturen zum Schutz gegen die Kirschessigfliege“"]

{"sheet":"Ergebnisse Detail","index":2,"n_rows":20,"n_cols":20,"rows_kept":20,"cut":false,"hidden":true,"merged":[[3,2,3,6],[7,2,8,2],[10,2,11,2],[15,2,16,2],[18,2,19,2]]}
[]
[null,null,{"$f":"Netzrechner!L12","v":"Anlage ( an der Gerüstkonstruktion)"},null,{"$f":"Netzrechner!H2","v":"Seitliche Einnetzung "},null,null,null,null,{"$f":"Netzrechner!H12","v":"Beschwerung/Sonstiges"},null,null,null,{"$f":"Netzrechner!L2","v":"Schleuse (Klein)"}]
[null,null,{"$f":"Netzrechner!C4","v":"Folientunnel"}," ; ",{"$f":"Netzrechner!H2","v":"Seitliche Einnetzung "},null,null,null,null,null,null,null,null,null,null,null,null,null,null,{"$f":"(VLOOKUP($C$3&$E$3,CHOOSE({1,2},Daten!$B$4:$B$20&Daten!$C$4:$C$20,Daten!$E$4:$E$20),2,FALSE))*Parameter2!D11*Netzrechner!C16","v":0}]
[null,null,{"$f":"CONCATENATE(C3,D3,Netzrechner!B5,Netzrechner!C5,Netzrechner!D5,'Ergebnisse Detail'!D3,E3,D3,D8,D3,\"Nutzungsdauer Netze: \",Netzrechner!C19,Netzrechner!D19,'Ergebnisse Detail'!D3,Netzrechner!B16,Netzrechner!C16,Netzrechner!D16)","v":"Folientunnel ;  Fläche: 1,125ha ; Seitliche Einnetzung  ; Netzpreis: 0,86 € je m² ; Nutzungsdauer Netze: 10 Jahre ; Lohnansatz Einnetzung: 14,264 €/Akh"}]
[]
[null,null,"Kosten der Einnetzung"]
[]
[null,null,"Anschaffungskosten",{"$f":"CONCATENATE(\"Netzpreis: \",Netzrechner!C21,\" € je m²\")","v":"Netzpreis: 0,86 € je m²"},null,"Gerüst Einnetzung"," ","Erstmontage"," ","Netzanbringung",{"$f":"I8","v":" "},"Bodenabschluss"," ","Anlagenzugang",{"$f":"M8","v":" "},"Gesamt"]
[null,null,null,{"$f":"VLOOKUP($C$3&$E$3,CHOOSE({1,2},Daten!$B$4:$B$20&Daten!$C$4:$C$20,Daten!$M$4:$M$20),2,FALSE)","v":3276.6},null,{"$f":"VLOOKUP($C$3&$E$3,CHOOSE({1,2},Daten!$B$4:$B$20&Daten!$C$4:$C$20,Daten!O4:O20),2,FALSE)+VLOOKUP($C$2&$E$2,CHOOSE({1,2},Daten!$B$30:$B$42&Daten!$C$30:$C$42,Daten!$F$30:$F$42),2,FALSE)+(VLOOKUP($C$3&$E$3,CHOOSE({1,2},Daten!$B$4:$B$20&Daten!$C$4:$C$20,Daten!$E$4:$E$20),2,FALSE)*Parameter2!D4*Netzrechner!C16)+(VLOOKUP($C$2&$E$2,CHOOSE({1,2},Daten!$B$30:$B$42&Daten!$C$30:$C$42,Daten!D30:D228),2,FALSE)+(VLOOKUP($C$2&$E$2,CHOOSE({1,2},Daten!$B$30:$B$42&Daten!$C$30:$C$42,Daten!H30:H42),2,FALSE)*Parameter2!D4))+(VLOOKUP($N$2,Daten!$B$45:$G$51,5,FALSE)*Netzrechner!C16)","v":334.48233333333332},{"$f":"E9","v":0},{"$f":"(VLOOKUP($C$3&$E$3,CHOOSE({1,2},Daten!$B$4:$B$20&Daten!$C$4:$C$20,Daten!$E$4:$E$20),2,FALSE)*Parameter2!D11*Netzrechner!C16)+(VLOOKUP($C$2&$E$2,CHOOSE({1,2},Daten!$B$30:$B$42&Daten!$C$30:$C$42,Daten!D30:D228),2,FALSE)+(VLOOKUP($C$2&$E$2,CHOOSE({1,2},Daten!$B$30:$B$42&Daten!$C$30:$C$42,Daten!H30:H42),2,FALSE)*Parameter2!D11))+(VLOOKUP($N$2,Daten!$B$45:$G$51,5,FALSE)*Netzrechner!C16)","v":321.52408333333335},{"$f":"G9","v":0},{"$f":"Parameter2!$D$5*Parameter2!D4","v":1943.75},{"$f":"I9","v":0},{"$f":"VLOOKUP($J$2,Daten!$B$24:$G$27,3,FALSE)*Parameter2!$D$4","v":0},{"$f":"K9","v":0},{"$f":"IF(Netzrechner!C4=Daten!B10,Netzrechner!C8*VLOOKUP($N$2,Daten!$B$45:$G$51,3,FALSE),VLOOKUP($N$2,Daten!$B$45:$G$51,3,FALSE))","v":2000},{"$f":"M9","v":0},{"$f":"SUM(D9,F9,H9,J9,L9,N9)","v":7876.3564166666665},{"$f":"G9","v":0}]
[]
[null,null,"Jährliche Kosten ( Betriebskosten, AfA, Reparatur)","Instalation",null,"Abschreibung",null,"Reparatur und Kontrolle",null,"Material"," ","Zinsansatz",null,"Gesamt"]
[null,null,null,{"$f":"D17*Netzrechner!C16","v":1693.1130266666657},null,{"$f":"(J9+L9+F9)/Netzrechner!C18+('Ergebnisse Detail'!J9+L9+F9)*Netzrechner!C20+D9/Netzrechner!C19+D9*Netzrechner!C20","v":722.12820333333332},null,{"$f":"(F17+H17)*Netzrechner!C16","v":128.376},{"$f":"E12","v":0},{"$f":"Parameter2!$D$17*Netzrechner!$C$5","v":112.5},"€",{"$f":"(D9+F9+H9+J9+L9+N9)*0.5*Netzrechner!C20","v":118.14534624999999},{"$f":"I12","v":0},{"$f":"D12+F12+H12+J12+L12","v":2774.2625762499993},{"$f":"O9","v":0}]
[]
[null,null,"Arbeitszeitbrdarf der Einnetzung",null,null,null,null,null,null,null,null,null,null,null,null," "]
[]
[null,null,"jährliche Arbeitszeit","Instalation ",null,"Reparatur",null,"Kontrolle",null,"Gesamt"]
[null,null,null,{"$f":"(VLOOKUP($C$3&$E$3,CHOOSE({1,2},Daten!$B$4:$B$20&Daten!$C$4:$C$20,Daten!$G$4:$G$20),2,FALSE)+VLOOKUP($C$3&$E$3,CHOOSE({1,2},Daten!$B$4:$B$20&Daten!$C$4:$C$20,Daten!$I$4:$I$20),2,FALSE))*Parameter2!D4+VLOOKUP($C$2&$E$2,CHOOSE({1,2},Daten!$B$30:$B$42&Daten!$C$30:$C$42,Daten!$J$30:$J$42),2,FALSE)*Parameter2!D4","v":118.69833333333327},null,{"$f":"Parameter2!D16*Netzrechner!$C$5","v":4.5},null,{"$f":"Parameter2!D14*Netzrechner!C5","v":4.5},"h",{"$f":"SUM(D17,F17,H17)","v":127.69833333333327},"h"]
[]
[null,null,"Erstmontage","Gesamt"]
[null,null,null,{"$f":"VLOOKUP($C$3&$E$3,CHOOSE({1,2},Daten!$B$4:$B$20&Daten!$C$4:$C$20,Daten!$E$4:$E$20),2,FALSE)*Parameter2!D4+(VLOOKUP($C$2&$E$2,CHOOSE({1,2},Daten!$B$30:$B$42&Daten!$C$30:$C$42,Daten!H30:H42),2,FALSE)*Parameter2!D4)+VLOOKUP($N$2,Daten!$B$45:$G$51,5,FALSE)+VLOOKUP(J2,Daten!B24:F27,5,FALSE)*Parameter2!D4","v":28.958333333333336}]

{"sheet":"Foto","index":3,"n_rows":19,"n_cols":11,"rows_kept":19,"cut":false,"hidden":true,"merged":[]}
[null,null,null,{"$f":"Netzrechner!L12","v":"Anlage ( an der Gerüstkonstruktion)"},null,{"$f":"CONCATENATE(Netzrechner!C4,Netzrechner!H2)","v":"FolientunnelSeitliche Einnetzung "},null,null,{"$f":"Netzrechner!H12","v":"Beschwerung/Sonstiges"},null,{"$f":"Netzrechner!L2","v":"Schleuse (Klein)"}]
[null,"Regenschutzdach"," ","außerhalb der Anlage",null,{"$f":"CONCATENATE(Daten!B4,Daten!C4)","v":"RegenschutzdachSeitliche Einnetzung "},null,null,"Draht-Plakette-Bungee",null,"Kurbel/Stirnseite"]
[null,"Folientunnel"," ","Anlage ( an der Gerüstkonstruktion)",null,{"$f":"CONCATENATE(Daten!B5,Daten!C5)","v":"RegenschutzdachSeitliche Einnetzung  inkl. Außenreihen (3)"},null,null,"Draht-Plakette",null,"Vorhangsystem"]
[null,"Freiland"," ","-",null,{"$f":"CONCATENATE(Daten!B6,Daten!C6)","v":"RegenschutzdachSeitliche Einnetzung inkl. Vorgewende"},null,null,"Beschwerung/Sandsäcke",null,"Schleuse (Groß)"]
[null,"Hagelnetz",null,null,null,{"$f":"CONCATENATE(Daten!B7,Daten!C7)","v":"RegenschutzdachKompletteinnetzung (inkl. Traufe inkl. Vorgewende)"},null,null,"Beschwerung/Sonstiges",null,"Schleuse (Klein)"]
[null,null,null,null,null,{"$f":"CONCATENATE(Daten!B8,Daten!C8)","v":"RegenschutzdachPermanente seitliche Einnetzung "},null,null,null,null,"Tor"]
[null,null,null,null,null,{"$f":"CONCATENATE(Daten!B9,Daten!C9)","v":"RegenschutzdachPermanente seitliche Einnetzung   inkl. Außenreihen (3)"},null,null,null,null,"Einzelreihenzugang"]
[null,null,null,null,null,{"$f":"CONCATENATE(Daten!B10,Daten!C10)","v":"FolientunnelSeitliche Einnetzung "},null,null,null,null,"bereits vorhanden"]
[null,null,null,null,null,{"$f":"CONCATENATE(Daten!B11,Daten!C11)","v":"FolientunnelKompletteinnetzung"}]
[null,null,null,null,null,{"$f":"CONCATENATE(Daten!B12,Daten!C12)","v":"FolientunnelPermanente seitliche Einnetzung "}]
[null,null,null,null,null,{"$f":"CONCATENATE(Daten!B13,Daten!C13)","v":"FolientunnelPermanente Kompletteinnetzung"}]
[null,null,null,null,null,{"$f":"CONCATENATE(Daten!B14,Daten!C14)","v":"FreilandSeitliche Einnetzung "}]
[null,null,null,null,null,{"$f":"CONCATENATE(Daten!B15,Daten!C15)","v":"FreilandKompletteinnetzung"}]
[null,null,null,null,null,{"$f":"CONCATENATE(Daten!B16,Daten!C16)","v":"FreilandSeitliche Einnetzung inkl. Vorgewende"}]
[null,null,null,null,null,{"$f":"CONCATENATE(Daten!B17,Daten!C17)","v":"FreilandPermanente seitliche Einnetzung "}]
[null,null,null,null,null,{"$f":"CONCATENATE(Daten!B18,Daten!C18)","v":"FreilandPermanente Kompletteinnetzung"}]
[null,null,null,null,null,{"$f":"CONCATENATE(Daten!B19,Daten!C19)","v":"FreilandPermanente seitliche Einnetzung inkl. Vorgewende"}]
[null,null,null,null,null,{"$f":"CONCATENATE(Daten!B20,Daten!C20)","v":"Freiland_lowCostKompletteinnetzung"}]
[null,null,null,null,null,{"$f":"CONCATENATE(Daten!B21,Daten!C21)","v":" "}]

{"sheet":"Daten","index":4,"n_rows":51,"n_cols":15,"rows_kept":51,"cut":false,"hidden":true,"merged":[]}
[null," ",null,null,null,null," "]
[]
[null,"Art der Anlage","Art der Einnetzung",null,"Erstmontage",null,"Schliessen",null,"Öffnen",null,"Maschienezeit",null,"AK_Netz",null,"Ak_Gerüst"]
[null,"Regenschutzdach","Seitliche Einnetzung ",null,0,null,2.5284197882439442E-2,null,1.6520206379894556E-2,null,4.1804404262333998E-2,null,{"$f":"(Netzrechner!$C$6*2+Netzrechner!$C$7*2)*(Netzrechner!$C$9+2)*Netzrechner!$C$21","v":921.92},null,0]
[null,"Regenschutzdach","Seitliche Einnetzung  inkl. Außenreihen (3)",null,0,null,{"$f":"(0.025*(4)*Netzrechner!$C$6)/Parameter2!$D$4","v":8.0385852090032149E-3},null,{"$f":"(0.017*(4)*Netzrechner!$C$6)/Parameter2!$D$4","v":5.4662379421221863E-3},null,4.1804404262333998E-2,null,{"$f":"(Netzrechner!$C$6*2+Netzrechner!$C$7*2)*(Netzrechner!$C$9+2)*Netzrechner!$C$21+Parameter2!D23*Netzrechner!$C$6*6*Netzrechner!$C$21","v":1889.42},null,0]
[null,"Regenschutzdach","Seitliche Einnetzung inkl. Vorgewende",null,0,null,2.5284197882439442E-2,null,1.6520206379894556E-2,null,4.1804404262333998E-2,null,{"$f":"(Netzrechner!$C$6*2+Netzrechner!$C$7*2)*(Netzrechner!$C$9+2)*Netzrechner!$C$21+(Netzrechner!$C$7+2*Netzrechner!$C$8)*(Netzrechner!C22)*Netzrechner!$C$21+(Netzrechner!$C$7*Netzrechner!$C$8)*Netzrechner!$C$21","v":1086.6099999999999},null,{"$f":"((Netzrechner!C7+2*Netzrechner!C8)/4*Parameter2!D15)*2","v":217.5}]
[null,"Regenschutzdach","Kompletteinnetzung (inkl. Traufe inkl. Vorgewende)",null,0,null,{"$f":"(0.025*(Netzrechner!$C$10-1)*Netzrechner!$C$6)/Parameter2!$D$4","v":5.0241157556270098E-3},null,{"$f":"(0.017*(Netzrechner!$C$10-1)*Netzrechner!$C$6)/Parameter2!$D$4","v":3.4163987138263667E-3},null,4.1804404262333998E-2,null,{"$f":"(Netzrechner!$C$6*2+Netzrechner!$C$7*2)*(Netzrechner!$C$9+2)*Netzrechner!$C$21+(Netzrechner!$C$7+2*Netzrechner!$C$8)*(Netzrechner!C22)*Netzrechner!$C$21+(Netzrechner!$C$7*Netzrechner!$C$8)*Netzrechner!$C$21+Parameter2!D23*Netzrechner!$C$6*(Netzrechner!C10-1)*Netzrechner!$C$21","v":1489.7349999999999},null,{"$f":"((Netzrechner!C7+2*Netzrechner!C8)/4*Parameter2!D15)*2","v":217.5}]
[null,"Regenschutzdach","Permanente seitliche Einnetzung ",null,8.8888888888888892E-2,null,0,null,0,null,0,null,{"$f":"(Netzrechner!$C$6*2+Netzrechner!$C$7*2)*(Netzrechner!$C$9+2)*Netzrechner!$C$21","v":921.92},null,0]
[null,"Regenschutzdach","Permanente seitliche Einnetzung   inkl. Außenreihen (3)",null,8.8888888888888892E-2,null,0,null,0,null,0,null,{"$f":"(Netzrechner!$C$6*2+Netzrechner!$C$7*2)*(Netzrechner!$C$9+2)*Netzrechner!$C$21+0.8*Netzrechner!$C$6*6*Netzrechner!$C$21","v":1437.92},null,0]
[null,"Folientunnel","Seitliche Einnetzung ",null,0,null,4.4444444444444398E-2,null,3.1888888888888897E-2,null,0,null,{"$f":"IF(Netzrechner!$C$11=\"ja\",(((((Netzrechner!$C$7)*2*(Netzrechner!$C$10+1))+(Netzrechner!$C$6*2*(Netzrechner!$C$9+1)))*Netzrechner!$C$21)*Netzrechner!$C$8),(((((Netzrechner!$C$7*Netzrechner!$C$8)*2*(Netzrechner!$C$10+1))+(Netzrechner!$C$6*2*(Netzrechner!$C$9+1)))*Netzrechner!$C$21)+((Netzrechner!$C$8-1)*Netzrechner!$C$6*Netzrechner!$C$9*Netzrechner!$C$21)))","v":3276.6},null,0]
[null,"Folientunnel","Kompletteinnetzung",null,0,null,4.1025641025641026E-2,null,2.0512820512820513E-2,null,0,null,{"$f":"(Netzrechner!$C$6*2+(Netzrechner!$C$7*Netzrechner!$C$8)*2)*(Netzrechner!$C$9+0.5)*Netzrechner!$C$21+((Netzrechner!$C$6*(Netzrechner!$C$7*Netzrechner!$C$8)*Netzrechner!$C$21))","v":10599.5},null,0]
[null,"Folientunnel","Permanente seitliche Einnetzung ",null,5.5147058823529403E-2,null,0,null,0,null,0,null,{"$f":"IF(Netzrechner!$C$11=\"ja\",(((((Netzrechner!$C$7)*2*(Netzrechner!$C$10+1))+(Netzrechner!$C$6*2*(Netzrechner!$C$9+1)))*Netzrechner!$C$21)*Netzrechner!$C$8),(((((Netzrechner!$C$7)*2*(Netzrechner!$C$10+1))+(Netzrechner!$C$6*2*(Netzrechner!$C$9+1)))*Netzrechner!$C$21)+((Netzrechner!$C$8-1)*Netzrechner!$C$6*Netzrechner!$C$9*Netzrechner!$C$21)))","v":2649.66},null,0]
[null,"Folientunnel","Permanente Kompletteinnetzung",null,4.1025641025641026E-2,null,0,null,0,null,0,null,{"$f":"(Netzrechner!$C$6*2+(Netzrechner!$C$7*Netzrechner!$C$8)*2)*(Netzrechner!$C$9+0.5)*Netzrechner!$C$21+((Netzrechner!$C$6*(Netzrechner!$C$7*Netzrechner!$C$8)*Netzrechner!$C$21))","v":10599.5},null,0]
[null,"Freiland","Seitliche Einnetzung ",null,4.72222222222222E-2,null,2.2222222222222223E-2,null,2.2222222222222223E-2,null,4.4444444444444446E-2,null,{"$f":"(Netzrechner!$C$6*2+Netzrechner!$C$7*2)*(Netzrechner!$C$9+0.5)*Netzrechner!$C$21","v":576.20000000000005},null,{"$f":"(Netzrechner!C6*2+Netzrechner!C7*2)/4*Parameter2!D15","v":1005}]
[null,"Freiland","Kompletteinnetzung",null,0.65,null,{"$f":"60*Netzrechner!C5/Parameter2!D4","v":4.3408360128617367E-2},null,{"$f":"40*Netzrechner!C5/Parameter2!D4","v":2.8938906752411574E-2},null,2.197802197802198E-2,null,{"$f":"(Netzrechner!$C$6*2+Netzrechner!$C$7*2)*(Netzrechner!$C$9+0.5)*Netzrechner!$C$21+(Netzrechner!$C$6*Netzrechner!$C$7)*Netzrechner!$C$21","v":1543.7},null,{"$f":"(Netzrechner!$C$10*Netzrechner!$C$6)/4*Parameter2!$D$15+(Netzrechner!$C$6*2+Netzrechner!$C$7*2)/4*Parameter2!$D$15","v":2645.625}]
[null,"Freiland","Seitliche Einnetzung inkl. Vorgewende",null,4.72222222222222E-2,null,2.2222222222222223E-2,null,2.2222222222222223E-2,null,4.4444444444444446E-2,null,{"$f":"(Netzrechner!$C$6*2+Netzrechner!$C$7*2)*(Netzrechner!$C$9+0.5)*Netzrechner!$C$21++(Netzrechner!$C$7+2*Netzrechner!$C$8)*(Netzrechner!C22)*Netzrechner!$C$21+(Netzrechner!$C$7*Netzrechner!$C$8)*Netzrechner!$C$21","v":740.89},null,{"$f":"(Netzrechner!$C$6*2+Netzrechner!$C$7*2)/4*Parameter2!$D$15+((Netzrechner!$C$7+2*Netzrechner!$C$8)/4*Parameter2!$D$15)*2","v":1222.5}]
[null,"Freiland","Permanente seitliche Einnetzung ",null,{"$f":"E14+G14","v":6.944444444444442E-2},null,0,null,0,null,0,null,{"$f":"(Netzrechner!$C$6*2+Netzrechner!$C$7*2)*(Netzrechner!$C$9+0.5)*Netzrechner!$C$21","v":576.20000000000005},null,{"$f":"(Netzrechner!C6*2+Netzrechner!C7*2)/4*Parameter2!D15","v":1005}]
[null,"Freiland","Permanente Kompletteinnetzung",null,{"$f":"E15+G15","v":0.6934083601286174},null,0,null,0,null,0,null,{"$f":"(Netzrechner!$C$6*2+Netzrechner!$C$7*2)*(Netzrechner!$C$9+0.5)*Netzrechner!$C$21+(Netzrechner!$C$6*Netzrechner!$C$7)*Netzrechner!$C$21","v":1543.7},null,{"$f":"(Netzrechner!$C$10*Netzrechner!$C$6)/4*Parameter2!$D$15+(Netzrechner!$C$6*2+Netzrechner!$C$7*2)/4*Parameter2!$D$15","v":2645.625}]
[null,"Freiland","Permanente seitliche Einnetzung inkl. Vorgewende",null,{"$f":"E16+G16","v":6.944444444444442E-2},null,0,null,0,null,0,null,{"$f":"(Netzrechner!$C$6*2+Netzrechner!$C$7*2)*(Netzrechner!$C$9+0.5)*Netzrechner!$C$21+(Netzrechner!$C$7+2*Netzrechner!$C$8)*(Netzrechner!C22)*Netzrechner!$C$21+(Netzrechner!$C$7*Netzrechner!$C$8)*Netzrechner!$C$21","v":740.89},null,{"$f":"(Netzrechner!C6*2+Netzrechner!C7*2)/4*Parameter2!D15+((Netzrechner!C7+2*Netzrechner!C8)/4*Parameter2!D15)*2","v":1222.5}]
[null,"Freiland_lowCost","Kompletteinnetzung",null,0,null,{"$f":"60*Netzrechner!C5/Parameter2!D4","v":4.3408360128617367E-2},null,{"$f":"40*Netzrechner!C5/Parameter2!D4","v":2.8938906752411574E-2},null,2.1978021978022001E-2,null,{"$f":"(Netzrechner!$C$6*2+Netzrechner!$C$7*2)*(Netzrechner!$C$9+0.5)*Netzrechner!$C$21+(Netzrechner!$C$6*Netzrechner!$C$7)*Netzrechner!$C$21","v":1543.7},null,{"$f":"(Netzrechner!$C$10/2*Netzrechner!$C$6)/8*Parameter2!$D$15+(Netzrechner!$C$6*2+Netzrechner!$C$7*2)/8*Parameter2!$D$15","v":912.65625}]
[null," "]
[]
[null,"Bodenabschluss /Netzbefestigung",null,"Anschaffungskosten",null,"Erstmontage",null,"Reparaturzeit bei Starkwindereignissen",null,null,null," "]
[null,"Draht-Plakette-Bungee",null,{"$f":"Parameter2!D6","v":1.325},null,9.8780487804877998E-3,null,0,null," ",null," "," "]
[null,"Draht-Plakette",null,{"$f":"Parameter2!D7","v":0.60000000000000009},null,8.8780487804878006E-3,null,0,null,null," "," "]
[null,"Beschwerung/Sandsäcke",null,{"$f":"Parameter2!D4/Parameter2!D8*Parameter2!D9/Parameter2!D4","v":3.5000000000000003E-2},null,1.4999999999999999E-2,null,{"$f":"10/400","v":2.5000000000000001E-2},null,null,null," "]
[null,"Beschwerung/Sonstiges",null,0,null,0,null,{"$f":"10/400","v":2.5000000000000001E-2}]
[]
[null,"Lagerung","Art der Einnetzung","Anschaffungskosten",null,"Kosten Aufwickelgerät",null,"Erstmontage",null,"jährlicher Arbeitszeitbedarf"]
[null,"außerhalb der Anlage","Seitliche Einnetzung ",0,null,{"$f":"1/Netzrechner!$C$5*Parameter2!$D$3","v":4.4444444444444446},null,0,null,0.02]
[null,"außerhalb der Anlage","Seitliche Einnetzung  inkl. Außenreihen (3)",0,null,{"$f":"1.5/Netzrechner!$C$5*Parameter2!$D$3","v":6.6666666666666661},null,0,null,0.02]
[null,"außerhalb der Anlage","Seitliche Einnetzung inkl. Vorgewende",0,null,{"$f":"1/Netzrechner!$C$5*Parameter2!$D$3","v":4.4444444444444446},null,0,null,0.02,null,null,null," "]
[null,"außerhalb der Anlage","Kompletteinnetzung",0,null,{"$f":"2/Netzrechner!$C$5*Parameter2!$D$3","v":8.8888888888888893},null,0,null,0.02]
[null,"Anlage ( an der Gerüstkonstruktion)","Seitliche Einnetzung ",{"$f":"Parameter2!$D$13*Parameter2!$D$4","v":93.300000000000011},null,0,null,{"$f":"30/3600","v":8.3333333333333332E-3},null,0]
[null,"Anlage ( an der Gerüstkonstruktion)","Seitliche Einnetzung  inkl. Außenreihen (3)",{"$f":"Parameter2!$D$13*Parameter2!$D$4+4*Netzrechner!C6*Parameter2!D13","v":123.30000000000001},null,0,null,{"$f":"30/3600+((30/3600*Netzrechner!C6*4)/Parameter2!D4)","v":1.1012861736334405E-2},null,0]
[null,"Anlage ( an der Gerüstkonstruktion)","Seitliche Einnetzung inkl. Vorgewende",{"$f":"Parameter2!$D$13*(Parameter2!$D$4+2*Netzrechner!C8)","v":94.500000000000014},null,0,null,{"$f":"30/3600","v":8.3333333333333332E-3},null,0,null,null,null," "]
[null,"Anlage ( an der Gerüstkonstruktion)","Kompletteinnetzung (inkl. Traufe inkl. Vorgewende)",{"$f":"Parameter2!$D$13*Parameter2!$D$4+((Netzrechner!C10-1)*Netzrechner!C6*Parameter2!D13)","v":112.05000000000001},null,0,null,{"$f":"30/3600+((30/3600*Netzrechner!C6*(Netzrechner!C10-1))/Parameter2!D4)","v":1.0008038585209003E-2},null,0,null,null,null," "]
[null,"Anlage ( an der Gerüstkonstruktion)","Kompletteinnetzung",{"$f":"Parameter2!$D$13*Parameter2!$D$4+((Netzrechner!C10-1)*Netzrechner!C6*Parameter2!D13)","v":112.05000000000001},null,0,null,{"$f":"30/3600*Netzrechner!C6*Netzrechner!C10/Parameter2!D4","v":2.344587352625938E-3},null,0]
[null,"-","Permanente Kompletteinnetzung",0,null,0,null,0,null,0]
[null,"-","Permanente seitlche Einnetzung  inkl. Außenreihen (3)",0,null,0,null,0,null,0]
[null,"-","Permanente seitliche Einnetzung ",0,null,0,null,0,null,0]
[null,"-","Permanente seitliche Einnetzung inkl. Vorgewende",0,null,0,null,0,null,0]
[null,null,null," "]
[null,"Zugang zur Anlage",null,"Anschaffungskosten",null,"Erstmontage"]
[null,"Kurbel/Stirnseite",null,{"$f":"Parameter2!D18","v":111.86},null,10]
[null,"Vorhangsystem",null,{"$f":"Parameter2!D22*Parameter2!D23","v":30},null,1,null,null,null," "]
[null,"Schleuse (Klein)",null,{"$f":"Parameter2!D20","v":200},null,16]
[null,"Schleuse ",null,{"$f":"Parameter2!D21","v":475},null,8]
[null,"bereits vorhanden",null,0,null,0]
[null,{"$f":"IF(Netzrechner!$C$4=Daten!$B$10,\"\",\"Einzelreihenzugang\")","v":""},null,{"$f":"Netzrechner!C10*Parameter2!D22*Parameter2!D23*2","v":210},null,{"$f":"5/60*2*Netzrechner!C10","v":0.58333333333333326}]
[null,{"$f":"IF(Netzrechner!$C$4=Daten!$B$10,\"\",\"Tor\")","v":""},null,{"$f":"Parameter2!D19","v":1500},null,0]

{"sheet":"Parameter2","index":5,"n_rows":25,"n_cols":4,"rows_kept":25,"cut":false,"hidden":true,"merged":[[15,1,16,1],[9,1,12,1],[5,1,8,1]]}
[]
[null,null,null,"Wert"]
[null,null,null,5]
[null,null,null,{"$f":"IF(Netzrechner!$C$4=Daten!$B$10,IF(Netzrechner!$C$11=\"ja\",(Netzrechner!C6*2+Netzrechner!C7*2)*Netzrechner!C8,Netzrechner!C6*(Netzrechner!C8+1)+((Netzrechner!C7*Netzrechner!C8)*2)),(Netzrechner!$C$6+Netzrechner!$C$7)*2)","v":1555}]
[null,null,null,1.25]
[null,null,null,1.325]
[null,null,null,0.60000000000000009]
[null,null,null,2]
[null,null,null,7.0000000000000007E-2]
[null,null,null,2]
[null,null,null,0.01]
[null,null,null,0.1]
[null,null,null,{"$f":"D12/D10+D11","v":6.0000000000000005E-2}]
[null,null,null,4]
[null,null,null,15]
[null,null,null,4]
[null,null,null,100]
[null,null,null,{"$f":"D24*2+2*Netzrechner!C7*D25","v":111.86}]
[null,null,null,1500]
[null,null,null,200]
[null,null,null,475]
[null,null,null,20]
[null,null,null,1.5]
[null,null,null,40]
[null,null,null,1.77]

{"sheet":"Auswahloptionen2","index":6,"n_rows":221,"n_cols":17,"rows_kept":221,"cut":false,"hidden":true,"merged":[]}
[]
[null," ",null,null,null,null," "]
["Höhenberechnung",{"$f":"Netzrechner!B6","v":"Länge Tunnel (2):"},{"$f":"Netzrechner!B7","v":"Breite Tunnel (3):"},"Höhe:","Preis Netz","Nutzungsdauer Netz","Art der Anlage: ",{"$f":"IF(Netzrechner!H2= Daten!C37,\"\",\"außerhalb der Anlage\")","v":"außerhalb der Anlage"},"Zugang zur Anlage",null,"Kurbel/Stirnseite",null,null,"Anzahl Tunnel (4)",null,"Zinsanansatz",{"$f":"IF(Netzrechner!$C$4=Daten!$B$10,IF(Netzrechner!$C$8>1,\"ja\",\"\"),\"\")","v":"ja"}]
["Seitenhöhe Netz (5)",0,0,0.1,0,1,"Regenschutzdach","Anlage ( an der Gerüstkonstruktion)",{"$f":"IF(Netzrechner!$C$4=\"Folientunnel\",K3,K3)","v":"Kurbel/Stirnseite"},null,"Vorhangsystem",null,null,"Länge Vorgewende (4)",null,0.01,{"$f":"IF(Netzrechner!$C$4=Daten!$B$10,IF(Netzrechner!$C$8>1,\"nein\",\"\"),\"\")","v":"nein"}]
["Strecke Boden- Folie (5)",5,0.5,0.2,0.5,2,"Folientunnel","-","Schleuse (Klein)",null," ",null,null,null,null,0.02]
[null,10,1,0.3,0.51,3,"Freiland",null,"Schleuse (Groß)",null,"bereits vorhanden",null,null,null,null,0.03]
[null,15,1.5,0.4,0.52,4,{"$f":"IF(Netzrechner!$C$5<0.4,\"Freiland_lowCost\",\"\")","v":""},null,"bereits vorhanden",null,"Einzelreihenzugang",null,null,null,null,0.04]
[null,20,2,0.5,0.53,5,null,null,"Einzelreihenzugang",null,"Tor",null,null,null,null,0.05]
[null,25,2.5,0.6,0.54,6,null,null,"Tor",null," ",null,null,null,null,0.06]
[null,30,3,0.7,0.55000000000000004,7,null,null," ",null,null,null,null,null,null,7.0000000000000007E-2]
[null,35,3.5,0.8,0.56000000000000005,8,null,null,null,null,null,null,null,null,null,0.08]
[null,40,4,0.9,0.56999999999999995,9,null,null,null,null,null,null,null,null,null,0.09]
[null,45,5,1,0.57999999999999996,10,null,null,null,null,null,null,null,null,null,0.1]
[null,50,6,1.1000000000000001,0.59,11,null,null,null,null,null,null,null,null,null,0.11]
[null,55,7,1.2,0.6,12,null,null,null,null,null,null,null,null,null,0.12]
[null,60,8,1.3,0.61,13]
[null,65,9,1.4,0.62,14]
[null,70,10,1.5,0.63,15]
[null,75,11,1.6,0.64,16]
[null,80,12,1.7,0.65,17]
[null,85,13,1.8,0.66,18]
[null,90,14,1.9,0.67,19]
[null,95,15,2,0.68,20,null,null," "]
[null,100,16,2.1,0.69]
[null,105,17,2.2000000000000002,0.7]
[null,110,18,2.2999999999999998,0.71]
[null,115,19,2.4,0.72]
[null,120,20,2.5,0.73]
[null,125,21,2.6,0.74]
[null,130,22,2.7,0.75]
[null,135,23,2.8,0.76]
[null,140,24,2.9,0.77]
[null,145,25,3,0.78]
[null,150,26,3.1,0.79]
[null,155,27,3.2,0.8]
[null,160,28,3.3,0.81]
[null,165,29,3.4,0.82]
[null,170,30,3.5,0.83]
[null,175,31,3.6,0.84]
[null,180,32,3.7,0.85]
[null,185,33,3.8,0.86]
[null,190,34,3.9,0.87]
[null,195,35,4,0.88]
[null,200,36,4.0999999999999996,0.89]
[null,205,37,4.2,0.9]
[null,210,38,4.3,0.91]
[null,215,39,4.4000000000000004,0.92]
[null,220,40,4.5,0.93]
[null,225,41,4.5999999999999996,0.94]
[null,230,42,4.7,0.95]
[null,235,43,4.8,0.96]
[null,240,44,4.9000000000000004,0.97]
[null,245,45,5,0.98]
[null,250,46,5.0999999999999996,0.99]
[null,255,47,5.2,1]
[null,260,48,5.3,1.01]
[null,265,49,5.4,1.02]
[null,270,50,5.5,1.03]
[null,275,51,5.6,1.04]
[null,280,52,5.7,1.05]
[null,285,53,5.8,1.06]
[null,290,54,5.9,1.07]
[null,295,55,6,1.08]
[null,300,56,6.1,1.0900000000000001]
[null,305,57,6.2,1.1000000000000001]
[null,310,58,6.3,1.1100000000000001]
[null,315,59,6.4,1.1200000000000001]
[null,null,60,6.5,1.1299999999999999]
[null,null,61,6.6,1.1399999999999999]
[null,null,62,6.7,1.1499999999999999]
[null,null,63,6.8,1.1599999999999999]
[null,null,64,6.9,1.17]
[null,null,65,7,1.18]
[null,null,66,7.1,1.19]
[null,null,67,7.2,1.2]
[null,null,68,7.3,1.21]
[null,null,69,7.4,1.22]
[null,null,70,7.5,1.23]
[null,null,71,7.6,1.24]
[null,null,72,7.7,1.25]
[null,null,73,7.8,1.26]
[null,null,74,7.9,1.27]
[null,null,75,8,1.28]
[null,null,76,8.1,1.29]
[null,null,77,8.1999999999999993,1.3]
[null,null,78,8.3000000000000007,1.31]
[null,null,79,8.4,1.32]
[null,null,80,8.5,1.33]
[null,null,81,61,1.34]
[null,null,82,62,1.35]
[null,null,83,63,1.36]
[null,null,84,64,1.37]
[null,null,85,65,1.38]
[null,null,86,66,1.39]
[null,null,87,67,1.4]
[null,null,88,68,1.41]
[null,null,89,69,1.42]
[null,null,90,70,1.43]
[null,null,91,71,1.44]
[null,null,92,72,1.45]
[null,null,93,73,1.46]
[null,null,94,74,1.47]
[null,null,95,75,1.48]
[null,null,96,76,1.49]
[null,null,97,77,1.5]
[null,null,98,78,1.51]
[null,null,99,79,1.52]
[null,null,100,80,1.53]
[null,null,101,81,1.54]
[null,null,102,82,1.55]
[null,null,103,83,1.56]
[null,null,104,84,1.57]
[null,null,105,85,1.58]
[null,null,106,86,1.59]
[null,null,107,87,1.6]
[null,null,108,88,1.61]
[null,null,109,89,1.62]
[null,null,110,90,1.63]
[null,null,111,91,1.64]
[null,null,112,92,1.65]
[null,null,113,93,1.66]
[null,null,114,94,1.67]
[null,null,115,95,1.68]
[null,null,116,96,1.69]
[null,null,117,97,1.7]
[null,null,118,98,1.71]
[null,null,119,99,1.72]
[null,null,120,100,1.73]
[null,null,121,101,1.74]
[null,null,122,102,1.75]
[null,null,123,103,1.76]
[null,null,124,104,1.77]
[null,null,125,105,1.78]
[null,null,126,106,1.79]
[null,null,127,107,1.8]
[null,null,128,108,1.81]
[null,null,129,109,1.82]
[null,null,130,110,1.83]
[null,null,131,111,1.84]
[null,null,132,112,1.85]
[null,null,133,113,1.86]
[null,null,134,114,1.87]
[null,null,135,115,1.88]
[null,null,136,116,1.89]
[null,null,137,117,1.9]
[null,null,138,118,1.91]
[null,null,139,119,1.92]
[null,null,140,120,1.93]
[null,null,141,121,1.94]
[null,null,142,122,1.95]
[null,null,143,123,1.96]
[null,null,144,124,1.97]
[null,null,145,125,1.98]
[null,null,146,126,1.99]
[null,null,147,127,2]
[null,null,148,128,2.0099999999999998]
[null,null,149,129,2.02]
[null,null,150,130,2.0299999999999998]
[null,null,151,131,2.04]
[null,null,152,132,2.0499999999999998]
[null,null,153,133,2.06]
[null,null,154,134,2.0699999999999998]
[null,null,155,135,2.08]
[null,null,156,136,2.09]
[null,null,157,137,2.1]
[null,null,158,138,2.11]
[null,null,159,139,2.12]
[null,null,160,140,2.13]
[null,null,161,141,2.14]
[null,null,162,142,2.15]
[null,null,163,143,2.16]
[null,null,164,144,2.17]
[null,null,165,145,2.1800000000000002]
[null,null,166,146,2.19]
[null,null,167,147,2.2000000000000002]
[null,null,168,148,2.21]
[null,null,169,149,2.2200000000000002]
[null,null,170,150,2.23]
[null,null,171,151,2.2400000000000002]
[null,null,172,152,2.25]
[null,null,173,153,2.2599999999999998]
[null,null,174,154,2.27]
[null,null,175,155,2.2799999999999998]
[null,null,176,156,2.29]
[null,null,177,157,2.2999999999999998]
[null,null,178,158,2.31]
[null,null,179,159,2.3199999999999998]
[null,null,180,null,2.33]
[null,null,181,null,2.34]
[null,null,182,null,2.35]
[null,null,183,null,2.36]
[null,null,184,null,2.37]
[null,null,185,null,2.38]
[null,null,186,null,2.39]
[null,null,187,null,2.4]
[null,null,188,null,2.41]
[null,null,189,null,2.42]
[null,null,190,null,2.4300000000000002]
[null,null,191,null,2.44]
[null,null,192,null,2.4500000000000002]
[null,null,193,null,2.46]
[null,null,194,null,2.4700000000000002]
[null,null,195,null,2.48]
[null,null,196,null,2.4900000000000002]
[null,null,197,null,2.5]
[null,null,198,null,2.5099999999999998]
[null,null,199,null,2.52]
[null,null,200,null,2.5299999999999998]
[null,null,201,null,2.54]
[null,null,202,null,2.5499999999999998]
[null,null,203,null,2.56]
[null,null,204]
[null,null,205]
[null,null,402]
[null,null,404]
[null,null,406]
[null,null,408]
[null,null,410]
[null,null,412]
[null,null,414]
[null,null,416]